bitfinex/quotes_ETHUSD_20240921
["timestamp","ask_amount","ask_price","bid_price","bid_amount"]
[1726955554590,0.81700385,2565.6,2565.5,1.55097347]
[1726955554802,1.7654715,2565.7,2565.5,1.55097347]
[1726955555302,0.81699274,2565.6,2565.5,1.55097347]
[1726955555597,1.7654715,2565.7,2565.5,1.55097347]
[1726955555759,1.22348948,2565.6,2565.5,1.55097347]
[1726955556397,0.51916939,2565.6,2565.5,1.55097347]
[1726955556602,1.74488962,2565.6,2565.5,1.55097347]
[1726955556837,0.51916939,2565.6,2565.5,1.55097347]
[1726955557099,1.74488635,2565.6,2565.5,1.55097347]
[1726955557885,2.70015598,2565.6,2565.5,1.55097347]
[1726955558156,4.96688939,2565.6,2565.5,1.55097347]
[1726955558380,10.7787527,2565.6,2565.5,1.5]
[1726955558582,11.18337642,2565.6,2565.5,1.5]
[1726955559218,0.78239311,2565.6,2565.5,1.5]
[1726955559444,2.04041197,2565.6,2565.5,1.5]
[1726955559589,1.22429883,2565.6,2565.5,1.54649276]
[1726955559793,0.81619042,2565.6,2565.5,3.92089276]
[1726955560716,0.81619042,2565.7,2565.5,3.92089276]
[1726955562732,0.81619042,2565.8,2565.5,3.92089276]
[1726955571222,1.19761173,2565.8,2565.5,3.92089276]
[1726955571422,0.81619042,2565.8,2565.5,3.92089276]
[1726955573768,0.81619042,2565.8,2565.5,2.42089276]
[1726955574174,0.81619042,2565.8,2565.5,2.92089276]
[1726955574579,0.81619042,2565.7,2565.5,2.92089276]
[1726955574782,0.81619042,2565.8,2565.5,2.92089276]
[1726955575147,0.81619042,2565.7,2565.5,2.92089276]
[1726955575674,1.22429883,2565.9,2565.5,2.92089276]
[1726955575675,0.81619042,2565.8,2565.5,2.92089276]
[1726955578194,0.81619042,2565.8,2565.5,3.42089276]
[1726955582182,1.18347173,2565.8,2565.5,3.42089276]
[1726955582615,1.18347173,2565.8,2565.7,0.5]
[1726955582996,1.18347173,2565.8,2565.7,0.5462746]
[1726955584019,1.18347173,2565.8,2565.7,0.5]
[1726955584804,1.18347173,2565.8,2565.7,0.5462746]
[1726955585008,1.18347173,2565.8,2565.7,0.5]
[1726955586645,1.18347173,2565.8,2565.7,1.0]
[1726955587157,1.18347173,2565.8,2565.7,1.0462746]
[1726955587307,0.91728131,2565.8,2565.7,1.0462746]
[1726955587514,1.73355067,2565.8,2565.7,1.0462746]
[1726955587924,1.73355067,2565.8,2565.7,1.0]
[1726955588916,0.91728131,2565.8,2565.7,1.0]
[1726955589319,1.73354809,2565.8,2565.7,1.0]
[1726955589843,2.14158014,2565.8,2565.7,1.0]
[1726955590223,2.54960515,2565.8,2565.7,1.0]
[1726955590799,2.54960515,2565.8,2565.7,1.5]
[1726955591117,6.58841515,2565.8,2565.7,1.5]
[1726955591312,6.99675892,2565.8,2565.7,1.5]
[1726955591558,4.95609131,2565.8,2565.7,1.5]
[1726955591754,5.02396642,2565.8,2565.7,1.5]
[1726955591912,4.95609131,2565.8,2565.7,1.5]
[1726955592116,7.06218844,2565.8,2565.7,1.5]
[1726955592318,9.25878784,2565.8,2565.7,1.5]
[1726955593040,9.25878784,2565.8,2565.7,0.58934257]
[1726955593224,9.25878784,2565.8,2565.7,0.20958072]
[1726955593433,7.55727108,2565.8,2565.7,0.20958072]
[1726955593755,9.25878784,2565.8,2565.7,0.20958072]
[1726955594138,11.70480614,2565.8,2565.7,0.20958072]
[1726955594441,11.70475674,2565.8,2565.7,0.20958072]
[1726955598290,6.29063676,2565.6,2565.5,1.0]
[1726955598484,10.27842138,2565.6,2565.5,1.0]
[1726955601189,8.24064243,2565.6,2565.5,1.0]
[1726955601747,13.27842138,2565.6,2565.5,1.0]
[1726955603207,13.27694141,2565.6,2565.5,1.0]
[1726955606202,11.24064243,2565.6,2565.5,1.0]
[1726955607098,13.27694141,2565.6,2565.5,1.0]
[1726955607812,11.24064243,2565.6,2565.5,1.0]
[1726955607968,13.27694141,2565.6,2565.5,1.0]
[1726955608165,13.2765133,2565.6,2565.5,1.0]
[1726955610086,12.8690311,2565.6,2565.5,1.0]
[1726955610415,12.86902207,2565.6,2565.5,1.0]
[1726955610616,13.2765133,2565.6,2565.5,1.0]
[1726955612616,13.34438947,2565.6,2565.5,1.0]
[1726955613026,13.34438947,2565.6,2565.5,0.86504586]
[1726955613188,13.3438245,2565.6,2565.5,0.86504586]
[1726955616307,11.64230774,2565.6,2565.5,0.86504586]
[1726955617074,9.60700184,2565.6,2565.5,0.8354484]
[1726955617204,11.64206114,2565.6,2565.5,0.8354484]
[1726955617542,4.44878,2564.9,2564.8,2.2991]
[1726955620202,4.44878,2564.9,2564.8,2.1991]
[1726955633269,5.48702493,2564.9,2564.8,2.1991]
[1726955633475,6.30103664,2564.9,2564.8,2.1991]
[1726955633775,5.48702493,2564.9,2564.8,2.1991]
[1726955633971,5.26279171,2564.9,2564.8,2.1991]
[1726955635376,5.26549814,2564.9,2564.8,2.1991]
[1726955635584,5.26551933,2564.9,2564.8,2.1991]
[1726955635878,5.26551839,2564.9,2564.8,2.1991]
[1726955636287,4.44878,2564.9,2564.8,2.1991]
[1726955636445,5.66979757,2564.9,2564.8,2.1991]
[1726955637447,4.44878,2564.9,2564.8,2.1991]
[1726955638185,5.67502903,2564.9,2564.8,2.1991]
[1726955638679,4.44878,2564.9,2564.8,2.1991]
[1726955638881,5.67501671,2564.9,2564.8,2.1991]
[1726955639077,4.44878,2564.9,2564.8,2.1991]
[1726955639287,5.67503756,2564.9,2564.8,2.1991]
[1726955639979,5.6750279,2564.9,2564.8,2.1991]
[1726955640280,5.67505298,2564.9,2564.8,2.1991]
[1726955640485,5.67513017,2564.9,2564.8,2.1991]
[1726955640648,5.67512082,2564.9,2564.8,2.1991]
[1726955640852,4.44878,2564.9,2564.8,2.1991]
[1726955641059,5.67511588,2564.9,2564.8,2.6991]
[1726955641269,5.675126,2564.9,2564.8,2.6991]
[1726955641451,5.67511304,2564.9,2564.8,2.6991]
[1726955641654,5.6751417,2564.9,2564.8,2.6991]
[1726955641858,5.67510864,2564.9,2564.8,2.6991]
[1726955642057,5.67513273,2564.9,2564.8,2.6991]
[1726955642368,5.6751584,2564.9,2564.8,2.6991]
[1726955642694,6.07680343,2564.9,2564.8,2.6991]
[1726955642871,4.44878,2564.9,2564.8,2.6991]
[1726955643066,6.07680343,2564.9,2564.8,2.6991]
[1726955643472,4.44878,2564.9,2564.8,2.6991]
[1726955644196,5.67524982,2564.9,2564.8,2.6991]
[1726955644406,5.67528433,2564.9,2564.8,2.6991]
[1726955644626,4.44878,2564.9,2564.8,2.6991]
[1726955644897,5.67558399,2564.9,2564.8,2.6991]
[1726955645062,4.44878,2564.9,2564.8,3.1991]
[1726955645263,5.67562405,2564.9,2564.8,3.1991]
[1726955645516,2.17802343,2564.9,2564.8,3.1991]
[1726955645720,1.36790165,2564.9,2564.8,3.1991]
[1726955646201,1.36790165,2564.9,2564.8,3.24431202]
[1726955647794,0.55,2564.9,2564.8,3.24431202]
[1726955647975,1.36790767,2564.9,2564.8,3.24431202]
[1726955649212,1.36790767,2564.9,2564.8,3.74431202]
[1726955650089,1.3678896,2564.9,2564.8,3.74431202]
[1726955650486,0.55,2564.9,2564.8,3.74431202]
[1726955650670,1.36789299,2564.9,2564.8,3.74431202]
[1726955651004,0.55,2564.9,2564.8,3.74431202]
[1726955651509,1.36788257,2564.9,2564.8,3.74431202]
[1726955651714,1.36791843,2564.9,2564.8,3.74431202]
[1726955651864,1.36790921,2564.9,2564.8,3.74431202]
[1726955652069,1.36789579,2564.9,2564.8,3.74431202]
[1726955652302,1.36791037,2564.9,2564.8,3.74431202]
[1726955653205,1.36788463,2564.9,2564.8,3.74431202]
[1726955653419,0.55,2564.9,2564.8,4.24431202]
[1726955653709,1.36794605,2564.9,2564.8,4.24431202]
[1726955653881,1.36798101,2564.9,2564.8,4.24431202]
[1726955654077,1.77685456,2564.9,2564.8,4.24431202]
[1726955654502,0.55,2564.9,2564.8,4.24431202]
[1726955655122,1.36792015,2564.9,2564.8,4.24431202]
[1726955655319,1.77685456,2564.9,2564.8,4.24431202]
[1726955657046,0.55,2564.9,2564.8,4.24431202]
[1726955657363,1.22685456,2565.0,2564.8,5.04401202]
[1726955657529,1.36794541,2565.0,2564.9,2.4988]
[1726955657842,1.36794541,2565.0,2564.9,2.54387972]
[1726955658950,0.55,2565.0,2564.9,2.54387972]
[1726955659542,1.36794541,2565.0,2564.9,2.54387972]
[1726955659753,0.55,2565.0,2564.9,2.54387972]
[1726955668544,0.55,2565.1,2564.9,2.54387972]
[1726955669063,1.36794541,2565.1,2564.9,2.54387972]
[1726955672366,0.55,2565.1,2564.9,2.54387972]
[1726955672753,1.36794541,2565.1,2564.9,2.54387972]
[1726955673150,0.55,2565.1,2564.9,2.54387972]
[1726955673381,1.36794541,2565.1,2564.9,2.54387972]
[1726955676351,0.55,2565.1,2564.9,2.54387972]
[1726955676555,1.36794541,2565.1,2564.9,2.54387972]
[1726955688419,0.55,2565.0,2564.9,2.54387972]
[1726955688636,1.36794541,2565.0,2564.9,2.54387972]
[1726955688815,0.81794541,2565.0,2564.9,2.54387972]
[1726955689133,0.81794541,2565.1,2564.9,2.54387972]
[1726955690939,0.81794541,2565.0,2564.9,2.54387972]
[1726955691123,0.81794541,2565.1,2564.9,2.54387972]
[1726955691324,0.81794541,2565.0,2564.9,2.54387972]
[1726955691534,0.81794541,2565.0,2564.9,0.04507972]
[1726955692141,0.81794541,2565.1,2564.9,0.04507972]
[1726955692541,0.81794541,2565.0,2564.9,0.04507972]
[1726955692852,0.81794541,2565.1,2564.9,0.04507972]
[1726955693221,0.81794541,2565.0,2564.9,0.04507972]
[1726955693618,0.81794541,2565.1,2564.9,0.04507972]
[1726955693819,0.81794541,2565.0,2564.9,0.04507972]
[1726955695359,0.81794541,2565.1,2564.9,0.04507972]
[1726955695855,0.81794541,2565.0,2564.9,0.04507972]
[1726955696415,0.81794541,2565.0,2564.9,2.33227972]
[1726955700946,1.22685456,2565.1,2564.9,2.2872]
[1726955702130,1.22685456,2565.0,2564.8,2.5]
[1726955702327,0.81860458,2565.0,2564.8,2.5]
[1726955703365,0.81860458,2564.9,2564.8,2.5]
[1726955704358,0.81860458,2565.0,2564.8,2.5]
[1726955704556,0.81860458,2564.9,2564.8,2.5]
[1726955707583,0.81860458,2564.9,2564.7,2.2872]
[1726955710772,0.81860458,2564.9,2564.8,0.04470047]
[1726955713070,0.81860458,2565.0,2564.8,0.04470047]
[1726955713270,0.81860458,2564.9,2564.8,0.04470047]
[1726955716055,0.81860458,2565.0,2564.8,0.04470047]
[1726955716260,0.81860458,2564.9,2564.8,0.04470047]
[1726955717064,0.81860458,2565.0,2564.8,2.48810047]
[1726955717254,0.81860458,2565.0,2564.8,2.12047848]
[1726955717596,0.81860458,2565.4,2564.9,2.48801717]
[1726955717910,0.81860458,2565.4,2565.3,2.4434]
[1726955718404,0.81860458,2565.5,2565.3,2.48764052]
[1726955718979,1.22685456,2565.7,2565.3,2.48764052]
[1726955718980,0.81860458,2565.6,2565.3,2.48764052]
[1726955720168,0.81860458,2565.7,2565.3,2.48764052]
[1726955720473,0.55,2565.6,2565.3,2.48764052]
[1726955721075,1.36860458,2565.6,2565.3,2.48764052]
[1726955721275,0.55,2565.6,2565.3,2.48764052]
[1726955724815,1.36860458,2565.7,2565.3,2.48764052]
[1726955725097,0.55,2565.7,2565.3,2.48764052]
[1726955729283,0.55,2565.8,2565.3,2.48764052]
[1726955729490,1.36860458,2565.8,2565.3,2.48764052]
[1726955729716,0.55,2565.8,2565.3,2.4434]
[1726955729911,1.36860458,2565.8,2565.3,2.4434]
[1726955730432,0.55,2565.8,2565.3,2.4434]
[1726955730612,1.36860458,2565.8,2565.3,2.4434]
[1726955730922,0.55,2565.8,2565.3,2.4434]
[1726955731423,1.36860458,2565.8,2565.3,2.4434]
[1726955731932,0.55,2565.8,2565.3,2.4434]
[1726955732806,1.36860458,2565.8,2565.3,2.4434]
[1726955733216,0.55,2565.8,2565.4,0.04388247]
[1726955736598,0.55,2565.8,2565.5,2.3134]
[1726955736926,0.55,2565.8,2565.6,0.04372141]
[1726955737723,0.81860458,2565.9,2565.6,0.04372141]
[1726955737724,0.55,2565.9,2565.6,0.04372141]
[1726955738030,1.36860458,2565.9,2565.6,0.04372141]
[1726955738322,1.46825456,2566.1,2565.7,2.3134]
[1726955738323,0.81860458,2566.1,2565.7,2.3134]
[1726955738544,0.55,2566.0,2565.7,2.3134]
[1726955738697,0.55,2566.0,2565.8,0.04356037]
[1726955739086,0.55,2566.1,2565.7,2.3134]
[1726955739326,0.55,2566.1,2565.9,0.04347987]
[1726955739629,0.55,2566.1,2566.0,0.04339937]
[1726955740390,0.55,2566.1,2565.7,2.3134]
[1726955740586,0.55,2566.1,2565.8,0.04356037]
[1726955740791,0.55,2566.1,2565.7,2.3134]
[1726955740991,0.55,2566.1,2565.8,0.04356037]
[1726955741202,0.55,2566.1,2565.7,2.3134]
[1726955741437,0.55,2566.1,2565.8,0.04356037]
[1726955741804,0.55,2566.1,2565.7,2.3134]
[1726955742020,0.55,2566.1,2565.8,0.04356037]
[1726955742219,0.55,2566.2,2565.8,0.04356037]
[1726955742399,0.55,2566.2,2565.7,2.3134]
[1726955742601,0.55,2566.2,2565.8,0.04356037]
[1726955742944,0.55,2566.2,2565.7,2.3134]
[1726955743141,0.55,2566.2,2565.9,0.0433901]
[1726955743433,0.55,2566.2,2566.0,0.0433096]
[1726955743850,0.55,2566.2,2565.7,2.3134]
[1726955744135,0.55,2566.2,2566.1,0.0432291]
[1726955744330,0.55,2566.2,2566.0,2.3134]
[1726955744331,0.55,2566.3,2566.0,2.3134]
[1726955744638,0.55,2566.3,2566.1,0.04309855]
[1726955745428,0.55,2566.3,2566.0,2.3134]
[1726955745948,0.55,2566.3,2566.1,0.04309311]
[1726955746312,0.55,2566.3,2566.0,2.3134]
[1726955746697,0.55,2566.3,2566.1,0.04309311]
[1726955747136,0.55,2566.3,2566.0,2.3134]
[1726955747504,0.55,2566.3,2566.1,0.04309311]
[1726955747844,0.55,2566.3,2566.0,2.3134]
[1726955748134,0.55,2566.3,2566.2,0.04301262]
[1726955748312,0.55,2566.3,2566.0,2.3134]
[1726955748313,0.55,2566.3,2566.1,0.04309311]
[1726955748514,0.55,2566.3,2566.0,2.3134]
[1726955748722,0.55,2566.3,2566.2,0.04301262]
[1726955748945,1.36860458,2566.4,2566.1,0.04309311]
[1726955749168,0.55,2566.4,2566.0,2.3134]
[1726955749452,1.06000458,2566.5,2566.1,0.04309311]
[1726955749612,0.81860458,2566.6,2566.1,0.04309311]
[1726955750356,1.06000458,2566.7,2566.2,2.3825]
[1726955750853,0.81860458,2566.8,2566.3,0.04293214]
[1726955751149,1.22685456,2566.9,2566.4,4.08401676]
[1726955751150,0.81860458,2566.9,2566.4,4.08401676]
[1726955751356,2.34263984,2566.9,2566.4,4.08401676]
[1726955751721,0.55,2566.8,2566.4,4.08401676]
[1726955754547,0.55,2566.9,2566.5,2.3825]
[1726955757147,1.36860458,2567.0,2566.5,2.3825]
[1726955757670,0.55,2567.0,2566.5,2.3825]
[1726955757969,1.36860458,2567.0,2566.5,2.3825]
[1726955758736,0.55,2567.0,2566.5,2.3825]
[1726955758936,1.36860458,2567.0,2566.5,2.79090168]
[1726955761079,0.55,2567.0,2566.5,2.79090168]
[1726955761233,1.36860458,2567.0,2566.5,2.79090168]
[1726955762275,0.55,2567.0,2566.5,2.79090168]
[1726955763565,1.36860458,2567.0,2566.5,2.79090168]
[1726955763768,0.55,2567.0,2566.5,2.79090168]
[1726955768875,1.36860458,2567.1,2566.5,2.79090168]
[1726955769080,0.55,2567.1,2566.5,2.79090168]
[1726955774781,0.55,2567.1,2566.7,2.4214]
[1726955775091,0.55,2567.1,2566.8,0.04107458]
[1726955775387,0.55,2567.1,2566.7,2.4214]
[1726955778678,0.55,2567.1,2566.8,0.04107458]
[1726955778878,0.55,2567.1,2566.7,2.4214]
[1726955779088,0.55,2567.1,2566.9,0.04099414]
[1726955779293,0.55,2567.1,2566.8,0.04107458]
[1726955779468,0.55,2567.1,2566.7,2.4214]
[1726955779796,0.55,2567.1,2566.9,0.04099414]
[1726955779997,0.55,2567.1,2566.8,0.04107458]
[1726955780204,0.55,2567.1,2566.7,2.4214]
[1726955780566,0.55,2567.1,2566.8,0.04107458]
[1726955780979,0.55,2567.1,2566.7,2.4214]
[1726955781269,0.55,2567.1,2566.8,0.04107458]
[1726955781472,0.55,2567.1,2566.7,2.4214]
[1726955781865,0.55,2567.1,2566.8,0.04107458]
[1726955782089,0.55,2567.1,2566.7,2.4214]
[1726955782365,0.55,2567.1,2566.9,0.04099414]
[1726955782567,1.36860458,2567.1,2566.8,0.04104738]
[1726955782906,0.55,2567.1,2566.7,2.4214]
[1726955783069,1.36860458,2567.1,2566.9,0.04096694]
[1726955783265,1.36860458,2567.1,2566.7,2.4214]
[1726955783778,1.36860458,2567.1,2566.8,0.04104738]
[1726955784189,1.36860458,2567.1,2566.7,2.4214]
[1726955784579,1.36860458,2567.1,2566.8,0.04104738]
[1726955785004,1.36860458,2567.1,2566.7,2.4214]
[1726955785207,0.81860458,2567.0,2566.7,2.4214]
[1726955785401,1.36860458,2567.1,2566.8,0.04104738]
[1726955785570,2.20462184,2567.1,2566.8,0.04104738]
[1726955785767,2.20462184,2567.1,2566.7,2.4214]
[1726955786064,0.81860458,2567.0,2566.8,0.04104738]
[1726955786266,0.81860458,2567.0,2566.7,2.4214]
[1726955786463,1.36860458,2567.0,2566.9,0.04096694]
[1726955786703,2.18042122,2567.0,2566.7,2.4214]
[1726955786878,1.36860458,2567.0,2566.9,0.04096694]
[1726955787072,1.36860458,2567.0,2566.7,2.4214]
[1726955787292,1.36860458,2567.0,2566.9,0.04096694]
[1726955787508,1.36860458,2567.0,2566.8,0.04104738]
[1726955787811,1.36860458,2567.0,2566.7,2.4214]
[1726955788315,1.36860458,2567.0,2566.8,0.04104738]
[1726955788779,1.36860458,2567.0,2566.7,2.4214]
[1726955789402,0.81860458,2566.9,2566.7,2.4214]
[1726955789707,0.55,2567.0,2566.8,0.04104738]
[1726955789708,1.36860458,2567.0,2566.8,0.04104738]
[1726955789912,1.36860458,2567.0,2566.7,2.4214]
[1726955790208,0.81860458,2566.9,2566.7,2.4214]
[1726955790709,0.81860458,2566.9,2566.8,0.04104738]
[1726955790916,0.81860458,2566.9,2566.7,2.4214]
[1726955791076,0.81860458,2566.9,2566.8,0.04104738]
[1726955791608,0.81860458,2566.9,2566.7,2.4214]
[1726955791774,0.55,2566.9,2566.8,0.04104738]
[1726955792215,1.77685456,2566.9,2566.5,2.3619]
[1726955792416,0.81708407,2566.8,2566.5,2.3619]
[1726955792710,0.81708407,2566.8,2566.6,0.04120559]
[1726955793988,0.81708407,2566.8,2566.5,2.3619]
[1726955794302,0.81756589,2566.7,2566.6,0.04120559]
[1726955796328,0.81802506,2566.7,2566.6,0.04120559]
[1726955796528,0.8180281,2566.7,2566.6,0.04120559]
[1726955797088,0.81806851,2566.7,2566.6,0.04120559]
[1726955797465,1.22685456,2566.8,2566.6,0.04120559]
[1726955797817,1.22685456,2566.8,2566.5,2.3619]
[1726955797990,0.81807845,2566.6,2566.5,2.3619]
[1726955798627,1.22685456,2566.6,2566.3,5.3619]
[1726955798832,1.51234236,2566.6,2566.5,0.04128605]
[1726955799132,0.2854878,2566.6,2566.5,0.04127518]
[1726955799332,1.5126105,2566.6,2566.5,0.04127518]
[1726955799547,1.51258873,2566.6,2566.3,2.3619]
[1726955799706,0.8181065,2566.4,2566.3,2.3619]
[1726955800604,0.8181065,2566.5,2566.3,2.3619]
[1726955800817,0.8181065,2566.4,2566.3,2.40333613]
[1726955801200,0.8181065,2566.5,2566.3,2.40333613]
[1726955810954,0.8181065,2566.4,2566.3,0.04143613]
[1726955811129,0.8181065,2566.4,2566.2,3.20151676]
[1726955811318,0.8181065,2566.4,2566.3,0.04144156]
[1726955811521,0.8181065,2566.4,2566.2,3.20151676]
[1726955811715,0.8181065,2566.4,2566.3,0.04144156]
[1726955811941,0.8181065,2566.4,2566.2,3.20151676]
[1726955812256,0.8181065,2566.4,2566.3,0.04144156]
[1726955812626,0.8181065,2566.4,2566.2,3.20151676]
[1726955812830,0.8181065,2566.4,2566.3,0.04144156]
[1726955813144,0.8181065,2566.4,2566.2,3.20151676]
[1726955813451,0.8181065,2566.4,2566.3,0.04144156]
[1726955813816,0.8181065,2566.4,2566.2,3.20151676]
[1726955814022,0.8181065,2566.4,2566.3,0.04144156]
[1726955814431,0.8181065,2566.4,2566.2,3.20151676]
[1726955814750,0.8181065,2566.4,2566.3,0.04144156]
[1726955814961,0.8181065,2566.4,2566.2,3.20151676]
[1726955815245,0.8181065,2566.4,2566.3,0.04146873]
[1726955815446,0.8181065,2566.5,2566.3,0.04146873]
[1726955815647,0.8181065,2566.5,2566.2,3.20151676]
[1726955815959,0.81760009,2566.5,2566.3,0.04146873]
[1726955816117,0.81760009,2566.5,2566.2,3.20151676]
[1726955816339,0.81760009,2566.5,2566.4,0.04138825]
[1726955816583,0.81760009,2566.5,2566.2,3.20151676]
[1726955820482,0.81760009,2566.5,2566.2,1.5]
[1726955820648,0.81760009,2566.5,2566.3,0.04146873]
[1726955820649,1.60900009,2566.4,2566.3,0.04146873]
[1726955820848,1.60900009,2566.4,2566.2,1.5]
[1726955821065,0.55,2566.3,2566.2,1.5]
[1726955821271,1.36760009,2566.3,2566.2,1.5]
[1726955821585,0.55,2566.3,2566.2,1.5]
[1726955821758,1.2232631,2566.3,2566.2,1.5]
[1726955821955,2.45036403,2566.3,2566.2,1.5]
[1726955824484,1.2232631,2566.3,2566.2,1.5]
[1726955824656,2.45036403,2566.3,2566.2,1.5]
[1726955825884,6.58842403,2566.3,2566.2,1.5]
[1726955826084,2.69176403,2566.3,2566.2,1.5]
[1726955826790,1.4646631,2566.3,2566.2,1.5]
[1726955826992,2.69176403,2566.3,2566.2,1.5]
[1726955827592,1.4646631,2566.3,2566.2,1.5]
[1726955827770,2.69176403,2566.3,2566.2,1.5]
[1726955828111,1.4646631,2566.3,2566.2,1.5]
[1726955828312,2.69176403,2566.3,2566.2,1.5]
[1726955828683,1.4646631,2566.3,2566.2,1.5]
[1726955829479,2.69176403,2566.3,2566.2,1.5]
[1726955829686,1.4646631,2566.3,2566.2,1.5]
[1726955830011,2.69176403,2566.3,2566.2,1.5]
[1726955830885,2.69176403,2566.3,2566.2,1.5405161]
[1726955831081,6.58842403,2566.3,2566.2,1.5405161]
[1726955832616,2.69176403,2566.3,2566.2,1.5405161]
[1726955832923,2.69176403,2566.3,2566.2,1.5]
[1726955833513,1.4646631,2566.3,2566.2,1.5405161]
[1726955834320,2.69176403,2566.3,2566.2,1.5405161]
[1726955834503,1.4646631,2566.3,2566.2,1.5405161]
[1726955834807,2.69176403,2566.3,2566.2,1.5405161]
[1726955835023,1.4646631,2566.3,2566.2,1.5405161]
[1726955835443,6.58842403,2566.3,2566.2,1.5405161]
[1726955836007,7.40307537,2566.3,2566.2,1.5405161]
[1726955836324,7.80136377,2566.3,2566.2,1.5]
[1726955837325,7.80136377,2566.3,2566.2,1.078125]
[1726955837326,5.7596115,2566.3,2566.2,1.078125]
[1726955837541,12.91049848,2566.3,2566.2,1.078125]
[1726955837730,15.12883409,2566.3,2566.2,1.078125]
[1726955838328,12.67946387,2566.3,2566.2,1.078125]
[1726955838531,15.12716078,2566.3,2566.2,1.078125]
[1726955839652,12.67946387,2566.3,2566.2,1.078125]
[1726955840465,10.46112826,2566.3,2566.2,1.078125]
[1726955840846,10.46112826,2566.3,2565.2,2.4758]
[1726955840847,0.55,2565.8,2565.2,2.4758]
[1726955841022,0.55,2565.6,2565.2,2.89353168]
[1726955841222,0.55,2565.6,2565.3,0.04038755]
[1726955841637,0.55,2565.7,2565.2,2.89353168]
[1726955841960,0.55,2565.7,2565.3,0.04038755]
[1726955842254,1.36552866,2565.7,2565.2,2.89353168]
[1726955842455,1.36552866,2565.7,2565.4,0.04030701]
[1726955842756,0.55,2565.7,2565.2,2.89353168]
[1726955847959,0.55,2565.7,2565.2,2.4758]
[1726955850243,4.44758,2565.7,2565.2,2.4758]
[1726955850438,0.55,2565.5,2565.0,4.03181676]
[1726955851025,0.55,2565.3,2565.0,2.3303]
[1726955851240,0.7914,2565.3,2564.8,5.3303]
[1726955851438,0.7914,2565.3,2565.1,0.04078527]
[1726955851637,0.7914,2565.3,2564.8,5.3303]
[1726955851860,0.7914,2565.3,2565.2,0.04070471]
[1726955852061,0.7914,2565.3,2564.8,5.3303]
[1726955852665,0.7914,2565.3,2564.9,0.04094639]
[1726955856268,0.55,2565.3,2564.9,0.04094639]
[1726955856971,0.55,2565.1,2564.9,0.04094639]
[1726955878710,0.7914,2564.9,2564.6,2.3705]
[1726955878881,0.7914,2564.9,2564.7,0.04133061]
[1726955879072,4.69018,2564.9,2564.7,0.04133061]
[1726955879271,0.55,2564.9,2564.6,2.3705]
[1726955879572,1.36552866,2565.0,2564.7,0.04133878]
[1726955879984,5.26425866,2565.0,2564.7,0.04133878]
[1726955880404,1.05692866,2564.9,2564.4,4.07201676]
[1726955880616,1.05692866,2564.9,2564.4,2.3705]
[1726955880617,4.449,2564.8,2564.4,2.3705]
[1726955880823,4.449,2564.8,2564.5,0.041519]
[1726955881113,0.7914,2564.6,2564.5,0.041519]
[1726955881275,1.60692866,2564.6,2564.5,0.041519]
[1726955881470,1.60692866,2564.6,2564.3,0.0379726]
[1726955881471,0.55,2564.5,2564.3,0.0379726]
[1726955889019,0.55,2564.6,2564.3,0.0379726]
[1726955889402,1.36602779,2564.6,2564.3,0.0379726]
[1726955889729,0.55,2564.6,2564.3,0.0379726]
[1726955889935,1.36602779,2564.6,2564.3,0.0379726]
[1726955890222,0.55,2564.6,2564.3,0.0379726]
[1726955890833,0.55,2564.6,2564.4,0.04014001]
[1726955892129,0.55,2564.7,2564.5,2.3059]
[1726955892295,0.55,2564.7,2564.6,0.04009585]
[1726955892496,1.36602779,2564.7,2564.3,2.3438726]
[1726955892923,1.36602779,2564.7,2564.4,0.04025704]
[1726955893431,5.26511779,2564.7,2564.4,0.04025704]
[1726955893640,0.55,2564.5,2564.4,0.04025704]
[1726955893933,5.26511779,2564.7,2564.3,2.3438726]
[1726955894136,0.55,2564.5,2564.3,2.3438726]
[1726955894334,0.55,2564.5,2564.4,0.04025704]
[1726955894499,0.55,2564.5,2564.3,2.3438726]
[1726955895434,1.60742779,2564.6,2564.3,0.0379726]
[1726955895638,6.56962774,2564.6,2564.3,0.0379726]
[1726955895805,6.56962774,2564.6,2564.3,0.03668706]
[1726955896139,5.26549779,2564.5,2564.4,0.04025704]
[1726955896496,0.55,2564.4,2564.3,0.03668706]
[1726955897120,0.55,2564.4,2564.3,0.07564743]
[1726955898395,2.14541773,2564.4,2564.3,0.07564743]
[1726955898602,1.32938994,2564.4,2564.3,0.07564743]
[1726955901744,1.32938994,2564.4,2564.3,0.03668706]
[1726955905207,0.55,2564.5,2564.3,0.03668706]
[1726955905405,0.55,2564.5,2564.3,0.07564743]
[1726955905607,0.55,2564.5,2564.3,0.03668706]
[1726955906117,0.55,2564.6,2564.4,2.3059]
[1726955906422,0.81602779,2564.7,2564.5,0.03898971]
[1726955906622,0.81602779,2564.6,2564.5,0.03898971]
[1726955906823,0.81602779,2564.6,2564.3,0.03668706]
[1726955907357,0.81602779,2564.6,2564.4,0.0390703]
[1726955907656,0.55,2564.5,2564.4,0.5390703]
[1726955908915,0.55,2564.5,2564.4,0.5]
[1726955909140,0.55,2564.5,2564.4,0.54062639]
[1726955910449,6.25559059,2564.5,2564.4,0.54062639]
[1726955911123,6.25559059,2564.5,2564.4,0.5]
[1726955911325,6.66360449,2564.5,2564.4,0.5]
[1726955911531,6.66360449,2564.5,2564.4,1.0]
[1726955914776,7.07161839,2564.5,2564.4,1.0]
[1726955915771,7.07161839,2564.5,2564.4,1.5]
[1726955916283,9.16209547,2564.4,2564.3,0.03668706]
[1726955916429,10.86361223,2564.4,2564.3,0.03668706]
[1726955916629,15.52934075,2564.4,2564.3,0.03668706]
[1726955917431,13.0823493,2564.4,2564.3,0.03668706]
[1726955917746,15.52770238,2564.4,2564.3,0.03668706]
[1726955918145,3.90076,2563.6,2563.5,0.0379726]
[1726955918345,6.06346199,2563.6,2563.5,0.0379726]
[1726955918547,6.54235276,2563.6,2563.5,0.0379726]
[1726955918775,8.17252074,2563.6,2563.5,0.0379726]
[1726955919276,8.37722074,2563.6,2563.5,0.0379726]
[1726955919637,6.74705276,2563.6,2563.5,0.0379726]
[1726955919832,7.968337,2563.6,2563.5,0.0379726]
[1726955920038,6.74705276,2563.6,2563.5,0.0379726]